fUSD/lending_fUSD_20250820
["ID","MTS","AMOUNT","RATE_DAILY","PERIOD"]
[380368055,1755707440713,-329.066521,0.00011,2]
[380368056,1755707440723,-151.0,0.00011,2]
[380368057,1755707440733,-548.993428,0.00011,2]
[380368058,1755707440742,-299.778001,0.00011,2]
[380368059,1755707440752,-548.993428,0.00011,2]
[380368060,1755707440761,-158.048643,0.00011,2]
[380368061,1755707440771,-299.778001,0.00011,2]
[380368062,1755707440780,-329.066521,0.00011,2]
[380368063,1755707440789,-329.066521,0.00011,2]
[380368064,1755707440799,-158.048643,0.00011,2]
[380368065,1755707440808,-329.066521,0.00011,2]
[380368066,1755707440817,-158.048643,0.00011,2]
[380368067,1755707440826,-329.066521,0.00011,2]
[380368068,1755707440836,-158.048643,0.00011,2]
[380368069,1755707440845,-329.066521,0.00011,2]
[380368070,1755707440854,-329.066521,0.00011,2]
[380368071,1755707440864,-227.0,0.00011,2]
[380368072,1755707440873,-584.55250548,0.00011099,2]
[380368073,1755707440882,-500.0,0.00011521,2]
[380368074,1755707440891,-1003.43822729,0.00011521,2]
[380368075,1755707440901,-1000.0,0.00011521,2]
[380368076,1755707440910,-1000.0,0.00011521,2]
[380368077,1755707440919,-729.50697533,0.00011521,2]
[380368078,1755707440929,-500.0,0.00011521,2]
[380368079,1755707440939,-1000.0,0.00011521,2]
[380368080,1755707440950,-2357.94,0.00011623,2]
[380368081,1755707440960,-300.0,0.0001199,2]
[380368082,1755707440969,-250.0,0.0001199,2]
[380368083,1755707440978,-584.55250543,0.00012065,2]
[380368084,1755707440989,-1500.0,0.00012068,2]
[380368085,1755707440998,-1000.0,0.00012068,2]
[380368086,1755707441007,-227.0,0.000121,2]
[380368087,1755707441018,-415.34438196,0.00012181,2]
[380368088,1755707441028,-262.5,0.000125,2]
[380368089,1755707441037,-227.0,0.00012589,2]
[380368090,1755707441047,-503.89816877,0.00012616,2]
[380368091,1755707441056,-164.58764109,0.000131,2]
[380368092,1755707441065,-584.55250543,0.0001323,2]
[380368094,1755707441075,-150.0,0.0001336,2]
[380368096,1755707441085,-415.34438196,0.00013463,2]
[380368098,1755707441094,-1000.0,0.00013699,2]
[380368100,1755707441102,-297.817257,0.00013699,2]
[380368101,1755707441112,-297.817257,0.00013699,2]
[380368102,1755707441121,-297.817257,0.00013699,2]
[380368103,1755707441130,-297.817257,0.00013699,2]
[380368104,1755707441140,-297.817257,0.00013699,2]
[380368105,1755707441149,-297.817257,0.00013699,2]
[380368106,1755707441158,-297.817257,0.00013699,2]
[380368107,1755707441167,-297.817257,0.00013699,2]
[380368108,1755707441177,-151.0,0.00013699,2]
[380368109,1755707441186,-151.0,0.00013699,2]
[380368110,1755707441195,-689.144136,0.00013699,2]
[380368111,1755707441205,-689.144136,0.00013699,2]
[380368112,1755707441215,-689.144136,0.00013699,2]
[380368114,1755707441224,-689.144136,0.00013699,2]
[380368115,1755707441234,-689.144136,0.00013699,2]
[380368116,1755707441243,-689.144136,0.00013699,2]
[380368117,1755707441252,-689.144136,0.00013699,2]
[380368118,1755707441261,-689.144136,0.00013699,2]
[380368119,1755707441271,-3274.05,0.00013699,2]
[380368120,1755707441280,-148116.56,0.00013699,2]
[380368121,1755707441289,-6354.27,0.00013699,2]
[380368124,1755707441299,-1499.76,0.00013699,2]
[380368125,1755707441308,-1803.09,0.00013699,2]
[380368126,1755707441317,-615.72,0.00013699,2]
[380368127,1755707441326,-150.99,0.00013699,2]
[380368128,1755707441336,-150.99,0.00013699,2]
[380368129,1755707441345,-2729.37239614,0.000137,2]
[380368130,1755707441355,-2729.37239614,0.000137,2]
[380368131,1755707441364,-2729.37239614,0.000137,2]
[380368132,1755707441373,-2729.37239614,0.000137,2]
[380368133,1755707441382,-2729.37239614,0.000137,2]
[380368134,1755707441391,-2729.37239614,0.000137,2]
[380368135,1755707441401,-2729.37239614,0.000137,2]
[380368136,1755707441410,-2729.37239614,0.000137,2]
[380368137,1755707441419,-2729.37239614,0.000137,2]
[380368138,1755707441428,-2729.37239614,0.000137,2]
[380368139,1755707441437,-2729.37239614,0.000137,2]
[380368140,1755707441446,-2729.37239614,0.000137,2]
[380368141,1755707441456,-2729.37239614,0.000137,2]
[380368142,1755707441465,-2729.37239614,0.000137,2]
[380368143,1755707441474,-2729.37239614,0.000137,2]
[380368144,1755707441485,-2729.37239614,0.000137,2]
[380368145,1755707441494,-2729.37239614,0.000137,2]
[380368146,1755707441503,-2729.37239614,0.000137,2]
[380368147,1755707441512,-2729.37239614,0.000137,2]
[380368148,1755707441521,-2729.37,0.000137,2]
[380368149,1755707441531,-1762.9025084,0.000137,2]
[380368150,1755707441540,-1762.9025084,0.000137,2]
[380368151,1755707441550,-1762.9025084,0.000137,2]
[380368152,1755707441559,-1762.9025084,0.000137,2]
[380368154,1755707441569,-1762.9025084,0.000137,2]
[380368155,1755707441578,-1762.9025084,0.000137,2]
[380368156,1755707441587,-1762.9025084,0.000137,2]
[380368157,1755707441596,-1762.9025084,0.000137,2]
[380368158,1755707441606,-1762.9025084,0.000137,2]
[380368159,1755707441615,-1762.9025084,0.000137,2]
[380368160,1755707441625,-1762.9025084,0.000137,2]
[380368161,1755707441634,-1762.9025084,0.000137,2]
[380368162,1755707441644,-1762.9025084,0.000137,2]
[380368163,1755707441653,-1762.9025084,0.000137,2]
[380368164,1755707441663,-1762.9025084,0.000137,2]
[380368165,1755707441672,-1762.9025084,0.000137,2]
[380368166,1755707441681,-1762.9025084,0.000137,2]
[380368167,1755707441691,-1762.9025084,0.000137,2]
[380368168,1755707441700,-1762.9025084,0.000137,2]
[380368169,1755707441710,-1762.9,0.000137,2]
[380368170,1755707441719,-158.44266566,0.000137,2]
[380368171,1755707441728,-158.44266566,0.000137,2]
[380368172,1755707441737,-158.44266566,0.000137,2]
[380368173,1755707441747,-158.44266566,0.000137,2]
[380368174,1755707441757,-158.44266566,0.000137,2]
[380368175,1755707441766,-158.44266566,0.000137,2]
[380368176,1755707441776,-158.44266566,0.000137,2]
[380368177,1755707441786,-158.44266566,0.000137,2]
[380368178,1755707441795,-158.44266566,0.000137,2]
[380368179,1755707441804,-158.44266566,0.000137,2]
[380368180,1755707441814,-158.44266566,0.000137,2]
[380368181,1755707441823,-158.44266566,0.000137,2]
[380368182,1755707441832,-158.44266566,0.000137,2]
[380368183,1755707441841,-158.44266566,0.000137,2]
[380368184,1755707441850,-158.44266566,0.000137,2]
[380368185,1755707441859,-158.44266566,0.000137,2]
[380368186,1755707441869,-158.44266566,0.000137,2]
[380368187,1755707441878,-158.44266566,0.000137,2]
[380368188,1755707441887,-158.44266566,0.000137,2]
[380368189,1755707441896,-158.44,0.000137,2]
[380368190,1755707441906,-424.0,0.00013869,2]
[380368191,1755707441915,-584.55250543,0.00014395,2]
[380368192,1755707441925,-1217.0,0.00014736,2]
[380368193,1755707441934,-415.34438196,0.00014744,2]
[380368194,1755707441946,-8000.0,0.00014748,2]
[380368195,1755707441957,-250.0,0.00015,2]
[380368196,1755707441966,-73491.85081895,0.00015,2]
[380368197,1755707441975,-300.0,0.00015068,2]
[380368198,1755707441985,-151.0,0.00015157,2]
[380368199,1755707441995,-314.16,0.00015299,2]
[380368200,1755707442005,-194067.2,0.000153,2]
[380368201,1755707442014,-164.58764109,0.000153,2]
[380368202,1755707442027,-500.0,0.00015315,2]
[380368203,1755707442036,-584.55250543,0.0001556,2]
[380368204,1755707442046,-151.0,0.0001569,2]
[380368205,1755707442056,-415.34438196,0.00016026,2]
[380368206,1755707442065,-2357.94,0.00016272,2]
[380368207,1755707442075,-500.0,0.00016329,2]
[380368208,1755707442084,-300.0,0.00016438,2]
[380368209,1755707442094,-584.55250543,0.00016725,2]
[380368210,1755707442105,-8130.33,0.00016922,2]
[380368211,1755707442115,-8990.31,0.00016922,2]
[380368212,1755707442124,-300.0,0.00017,2]
[380368213,1755707442134,-8872.36,0.00017,2]
[380368214,1755707442143,-314.16,0.00017211,2]
[380368215,1755707442154,-415.34438196,0.00017307,2]
[380368216,1755707442163,-164.58764109,0.000175,2]
[380368217,1755707442173,-18372.96,0.000177,2]
[380368218,1755707442182,-684.48726736,0.00017719,2]
[380368219,1755707442191,-157.67534784,0.0001772,2]
[380368220,1755707442200,-157.67534784,0.00017725,2]
[380368221,1755707442211,-9265.73662571,0.00017732,2]
[380368222,1755707442221,-684.48726736,0.00017734,2]
[380368223,1755707442230,-157.67534784,0.00017745,2]
[380368224,1755707442239,-684.48726736,0.00017747,2]
[380368225,1755707442248,-684.48726736,0.00017764,2]
[380368226,1755707442258,-9265.73662571,0.00017767,2]
[380368227,1755707442267,-157.67534784,0.00017781,2]
[380368228,1755707442277,-684.48726736,0.00017786,2]
[380368229,1755707442286,-9265.73662571,0.00017795,2]
[380368230,1755707442295,-684.48726736,0.00017795,2]
[380368231,1755707442305,-207.4107499,0.000178,2]
[380368232,1755707442314,-157.67534784,0.00017801,2]
[380368233,1755707442323,-9265.73662571,0.00017802,2]
[380368234,1755707442332,-684.48726736,0.00017817,2]
[380368235,1755707442341,-157.67534784,0.00017817,2]
[380368236,1755707442351,-9265.73662571,0.00017818,2]
[380368237,1755707442360,-157.67534784,0.00017823,2]
[380368238,1755707442369,-9265.73662571,0.00017826,2]
[380368239,1755707442379,-9265.73662571,0.00017838,2]
[380368240,1755707442388,-584.55250543,0.0001789,2]
[380368241,1755707442397,-500.0,0.00017973,2]
[380368242,1755707442407,-249.92415065,0.00017973,2]
[380368243,1755707442416,-504.44322309,0.00017973,2]
[380368244,1755707442426,-500.0,0.00017973,2]
[380368245,1755707442435,-500.0,0.00017973,2]
[380368246,1755707442444,-500.0,0.00017973,2]
[380368247,1755707442453,-160.03442829,0.00017973,2]
[380368248,1755707442463,-500.0,0.00017973,2]
[380368249,1755707442472,-500.0,0.00017973,2]
[380368250,1755707442482,-500.0,0.00017973,2]
[380368251,1755707442491,-276.03651359,0.00017973,2]
[380368252,1755707442500,-500.0,0.00017973,2]
[380368253,1755707442510,-500.0,0.00017973,2]
[380368254,1755707442519,-500.0,0.00017973,2]
[380368255,1755707442528,-500.0,0.00017973,2]
[380368256,1755707442538,-500.0,0.00017973,2]
[380368257,1755707442548,-399.49346105,0.00017973,2]
[380368258,1755707442559,-500.0,0.00017973,2]
[380368259,1755707442568,-639.74227414,0.00017973,2]
[380368260,1755707442579,-336.96243007,0.00017973,2]
[380368261,1755707442591,-500.0,0.00017973,2]
[380368262,1755707442601,-500.0,0.00017973,2]
[380368263,1755707442611,-500.0,0.00017973,2]
[380368264,1755707442621,-150.0,0.00017982,2]
[380368265,1755707442632,-791.19574844,0.00017983,2]
[380368266,1755707442642,-1008.38673821,0.00017984,2]
[380368267,1755707442651,-1225.57772798,0.00017985,2]
[380368268,1755707442661,-1442.76871775,0.00017986,2]
[380368269,1755707442671,-1659.95970752,0.00017986,2]
[380368270,1755707442680,-1877.15069729,0.00017987,2]
[380368271,1755707442690,-2094.34168706,0.00017988,2]
[380368272,1755707442699,-2311.53267683,0.00017989,2]
[380368273,1755707442709,-2528.72366659,0.0001799,2]
[380368274,1755707442720,-1325089.70503829,0.00018,2]
[380368275,1755707442729,-18279.84576004,0.00018,2]
[380368276,1755707442739,-151.0,0.00018,2]
[380368277,1755707442748,-243.130724,0.00018,2]
[380368278,1755707442758,-297.817257,0.00018,2]
[380368279,1755707442767,-243.130724,0.00018,2]
[380368280,1755707442776,-151.0,0.00018,2]
[380368281,1755707442786,-297.817257,0.00018,2]
[380368282,1755707442795,-151.0,0.00018,2]
[380368283,1755707442805,-243.130724,0.00018,2]
[380368284,1755707442814,-151.0,0.00018,2]
[380368285,1755707442823,-151.0,0.00018,2]
[380368286,1755707442833,-297.817257,0.00018,2]
[380368287,1755707442842,-243.130724,0.00018,2]
[380368288,1755707442851,-151.0,0.00018,2]
[380368289,1755707442860,-151.0,0.00018,2]
[380368290,1755707442870,-297.817257,0.00018,2]
[380368291,1755707442879,-151.0,0.00018,2]
[380368292,1755707442888,-182.521038,0.00018,2]
[380368293,1755707442898,-151.0,0.00018,2]
[380368294,1755707442907,-403.32229,0.00018,2]
[380368295,1755707442917,-151.0,0.00018,2]
[380368296,1755707442926,-151.0,0.00018,2]
[380368297,1755707442935,-403.32229,0.00018,2]
[380368298,1755707442948,-151.0,0.00018,2]
[380368299,1755707442958,-151.0,0.00018,2]
[380368300,1755707442967,-151.0,0.00018,2]
[380368301,1755707442976,-403.32229,0.00018,2]
[380368303,1755707442987,-151.0,0.00018,2]
[380368304,1755707443315,-403.32229,0.00018,2]
[380368305,1755707443324,-352.47251,0.00018,2]
[380368306,1755707443334,-352.47251,0.00018,2]
[380368307,1755707443343,-151.0,0.00018,2]
[380368308,1755707443353,-352.47251,0.00018,2]
[380368309,1755707443362,-151.0,0.00018,2]
[380368310,1755707443371,-352.47251,0.00018,2]
[380368311,1755707443380,-151.0,0.00018,2]
[380368312,1755707443389,-689.144136,0.00018,2]
[380368313,1755707443399,-689.144136,0.00018,2]
[380368314,1755707443408,-689.144136,0.00018,2]
[380368315,1755707443417,-443.804494,0.00018,2]
[380368316,1755707443426,-689.144136,0.00018,2]
[380368317,1755707443435,-443.804494,0.00018,2]
[380368318,1755707443445,-443.804494,0.00018,2]
[380368319,1755707443454,-7205.897011,0.00018,2]
[380368320,1755707443465,-155.125272,0.00018,2]
[380368321,1755707443474,-443.804494,0.00018,2]
[380368322,1755707443484,-7205.897011,0.00018,2]
[380368323,1755707443494,-151.0,0.00018,2]
[380368324,1755707443503,-155.125272,0.00018,2]
[380368325,1755707443512,-7205.897011,0.00018,2]
[380368326,1755707443521,-151.0,0.00018,2]
[380368327,1755707443530,-151.0,0.00018,2]
[380368328,1755707443540,-548.993428,0.00018,2]
[380368329,1755707443549,-299.778001,0.00018,2]
[380368330,1755707443559,-155.125272,0.00018,2]
[380368331,1755707443568,-7205.897011,0.00018,2]
[380368332,1755707443577,-151.0,0.00018,2]
[380368333,1755707443587,-548.993428,0.00018,2]
[380368334,1755707443596,-299.778001,0.00018,2]
[380368335,1755707443606,-155.125272,0.00018,2]
[380368336,1755707443615,-158.048643,0.00018,2]
[380368337,1755707443624,-548.993428,0.00018,2]
[380368338,1755707443634,-299.778001,0.00018,2]
[380368339,1755707443643,-158.048643,0.00018,2]
[380368340,1755707443652,-329.066521,0.00018,2]
[380368341,1755707443661,-151.0,0.00018,2]
[380368342,1755707443670,-548.993428,0.00018,2]
[380368343,1755707443679,-299.778001,0.00018,2]
[380368345,1755707443688,-329.066521,0.00018,2]
[380368347,1755707443698,-158.048643,0.00018,2]
[380368349,1755707443708,-158.048643,0.00018,2]
[380368352,1755707443717,-329.066521,0.00018,2]
[380368355,1755707443726,-1744.10402827,0.000181,2]
[380368358,1755707443735,-787.52,0.000184,7]
[380368361,1755707443744,-1000.0,0.00018521,2]
[380368363,1755707443754,-1000.0,0.00018521,2]
[380368366,1755707443764,-1000.0,0.00018521,2]
[380368369,1755707443773,-1000.0,0.00018521,2]
[380368371,1755707443782,-1000.0,0.00018521,2]
[380368374,1755707443791,-1000.0,0.00018521,2]
[380368377,1755707443801,-747.19820501,0.00018521,2]
[380368380,1755707443810,-1000.0,0.00018521,2]
[380368383,1755707443819,-589.99825164,0.00018521,2]
[380368385,1755707443829,-1000.0,0.00018521,2]
[380368386,1755707443838,-1000.0,0.00018521,2]
[380368388,1755707443848,-1000.0,0.00018521,2]
[380368390,1755707443857,-1000.0,0.00018521,2]
[380368392,1755707443866,-1000.0,0.00018521,2]
[380368393,1755707443876,-645.07709066,0.00018521,2]
[380368395,1755707443885,-1000.0,0.00018521,2]
[380368397,1755707443896,-415.34438196,0.00018589,2]
[380368399,1755707443905,-194067.2,0.000186,2]
[380368401,1755707443915,-18372.96,0.000187,2]
[380368403,1755707443924,-198.12,0.000188,2]
[380368405,1755707443934,-198.12,0.000188,2]
[380368407,1755707443946,-198.12,0.000188,2]
[380368408,1755707443959,-198.12,0.000188,2]
[380368410,1755707443968,-198.12,0.000188,2]
[380368412,1755707443978,-198.12,0.000188,2]
[380368414,1755707443988,-198.12,0.000188,2]
[380368416,1755707443998,-198.12,0.000188,2]
[380368417,1755707444007,-198.12,0.000188,2]
[380368419,1755707444018,-198.12,0.000188,2]
[380368421,1755707444028,-198.12,0.000188,2]
[380368423,1755707444038,-198.12,0.000188,2]
[380368425,1755707444047,-198.12,0.000188,2]
[380368426,1755707444056,-198.12,0.000188,2]
[380368428,1755707444067,-198.12,0.000188,2]
[380368430,1755707444076,-198.12,0.000188,2]
[380368432,1755707444086,-198.12,0.000188,2]
[380368434,1755707444095,-198.12,0.000188,2]
[380368436,1755707444105,-198.12,0.000188,2]
[380368438,1755707444115,-198.12,0.000188,2]
[380368440,1755707444124,-198.12,0.000188,2]
[380368442,1755707444134,-198.12,0.000188,2]
[380368443,1755707444145,-198.12,0.000188,2]
[380368445,1755707444156,-198.12,0.000188,2]
[380368447,1755707444166,-198.12,0.000188,2]
[380368449,1755707444175,-198.12,0.000188,2]
[380368451,1755707444185,-198.12,0.000188,2]
[380368453,1755707444195,-198.12,0.000188,2]
[380368455,1755707444205,-198.12,0.000188,2]
[380368456,1755707444215,-198.12,0.000188,2]
[380368458,1755707444224,-198.12,0.000188,2]
[380368460,1755707444234,-198.12,0.000188,2]
[380368462,1755707444244,-198.12,0.000188,2]
[380368464,1755707444254,-198.12,0.000188,2]
[380368466,1755707444264,-198.12,0.000188,2]
[380368468,1755707444273,-198.12,0.000188,2]
[380368469,1755707444283,-198.12,0.000188,2]
[380368470,1755707444292,-198.12,0.000188,2]
[380368471,1755707444301,-198.12,0.000188,2]
[380368472,1755707444311,-198.12,0.000188,2]
[380368473,1755707444320,-198.12,0.000188,2]
[380368474,1755707444330,-198.12,0.000188,2]
[380368475,1755707444339,-198.12,0.000188,2]
[380368476,1755707444349,-198.12,0.000188,2]
[380368477,1755707444358,-198.12,0.000188,2]
[380368478,1755707444368,-198.12,0.000188,2]
[380368479,1755707444378,-198.12,0.000188,2]
[380368480,1755707444387,-198.12,0.000188,2]
[380368481,1755707444396,-198.12,0.000188,2]
[380368482,1755707444405,-198.12,0.000188,2]
[380368483,1755707444419,-198.12,0.000188,2]
[380368484,1755707444429,-198.12,0.000188,2]
[380368485,1755707444439,-198.12,0.000188,2]
[380368486,1755707444449,-198.12,0.000188,2]
[380368487,1755707444459,-198.12,0.000188,2]
[380368488,1755707444468,-198.12,0.000188,2]
[380368489,1755707444478,-198.12,0.000188,2]
[380368490,1755707444488,-198.12,0.000188,2]
[380368491,1755707444498,-198.12,0.000188,2]
[380368492,1755707444508,-198.12,0.000188,2]
[380368493,1755707444517,-198.12,0.000188,2]
[380368494,1755707444527,-198.12,0.000188,2]
[380368495,1755707444536,-198.12,0.000188,2]
[380368496,1755707444546,-198.12,0.000188,2]
[380368497,1755707444555,-198.12,0.000188,2]
[380368498,1755707444565,-198.12,0.000188,2]
[380368499,1755707444575,-198.12,0.000188,2]
[380368500,1755707444585,-198.12,0.000188,2]
[380368501,1755707444595,-198.12,0.000188,2]
[380368502,1755707444605,-198.12,0.000188,2]
[380368503,1755707444615,-198.12,0.000188,2]
[380368504,1755707444625,-198.12,0.000188,2]
[380368505,1755707444635,-198.12,0.000188,2]
[380368506,1755707444644,-198.12,0.000188,2]
[380368507,1755707444654,-198.12,0.000188,2]
[380368508,1755707444664,-198.12,0.000188,2]
[380368509,1755707444674,-198.12,0.000188,2]
[380368510,1755707444684,-198.12,0.000188,2]
[380368511,1755707444693,-198.12,0.000188,2]
[380368512,1755707444703,-198.12,0.000188,2]
[380368513,1755707444715,-198.12,0.000188,2]
[380368514,1755707444725,-198.12,0.000188,2]
[380368515,1755707444735,-198.12,0.000188,2]
[380368516,1755707444746,-198.12,0.000188,2]
[380368517,1755707444756,-198.12,0.000188,2]
[380368518,1755707444766,-198.12,0.000188,2]
[380368519,1755707444775,-198.12,0.000188,2]
[380368520,1755707444785,-198.12,0.000188,2]
[380368521,1755707444795,-198.12,0.000188,2]
[380368522,1755707444804,-198.12,0.000188,2]
[380368523,1755707444814,-198.12,0.000188,2]
[380368524,1755707444823,-198.12,0.000188,2]
[380368525,1755707444833,-198.12,0.000188,2]
[380368526,1755707444843,-198.12,0.000188,2]
[380368527,1755707444853,-198.12,0.000188,2]
[380368528,1755707444863,-198.12,0.000188,2]
[380368529,1755707444872,-198.12,0.000188,2]
[380368530,1755707444882,-198.12,0.000188,2]
[380368531,1755707444892,-198.12,0.000188,2]
[380368532,1755707444901,-1000.0,0.00018822,2]
[380368533,1755707444912,-2921.52472732,0.00018882,2]
[380368534,1755707444921,-25000.0,0.0001897,2]
[380368535,1755707444931,-350.0,0.00019,2]
[380368536,1755707444942,-130331.23998452,0.00019,3]
[380368537,1755707444955,-212.04014818,0.00019,3]
[380368538,1755707444967,-151.0,0.00019,2]
[380368539,1755707444976,-151.0,0.00019,2]
[380368540,1755707444987,-151.0,0.00019,2]
[380368541,1755707444997,-151.0,0.00019,2]
[380368542,1755707445007,-343.149313,0.00019,2]
[380368543,1755707445017,-343.149313,0.00019,2]
[380368544,1755707445027,-151.0,0.00019,2]
[380368545,1755707445037,-343.149313,0.00019,2]
[380368546,1755707445047,-343.149313,0.00019,2]
[380368547,1755707445057,-689.488137,0.00019,2]
[380368548,1755707445067,-689.488137,0.00019,2]
[380368549,1755707445077,-151.0,0.00019,2]
[380368550,1755707445087,-689.488137,0.00019,2]
[380368551,1755707445096,-168.292773,0.00019,2]
[380368552,1755707445106,-689.488137,0.00019,2]
[380368553,1755707445115,-168.292773,0.00019,2]
[380368554,1755707445125,-5062.94130812,0.00019,2]
[380368555,1755707445135,-168.292773,0.00019,2]
[380368556,1755707445145,-168.292773,0.00019,2]
[380368557,1755707445154,-151.0,0.00019,2]
[380368558,1755707445164,-151.0,0.00019,2]
[380368559,1755707445174,-336.151469,0.00019,2]
[380368560,1755707445183,-336.151469,0.00019,2]
[380368561,1755707445193,-336.151469,0.00019,2]
[380368562,1755707445202,-336.151469,0.00019,2]
[380368563,1755707445213,-151.0,0.00019,2]
[380368564,1755707445223,-151.0,0.00019,2]
[380368565,1755707445233,-151.0,0.00019,2]
[380368566,1755707445242,-2172.107414,0.00019,2]
[380368567,1755707445252,-2172.107414,0.00019,2]
[380368568,1755707445262,-2172.107414,0.00019,2]
[380368569,1755707445272,-151.0,0.00019,2]
[380368570,1755707445282,-2172.107414,0.00019,2]
[380368571,1755707445292,-247.85332,0.00019,2]
[380368572,1755707445301,-350.20949797,0.0001901,7]
[380368573,1755707445311,-584.55250543,0.00019055,2]
[380368574,1755707445320,-458.07447694,0.00019068,2]
[380368575,1755707445330,-1500.0,0.00019068,2]
[380368576,1755707445339,-1500.0,0.00019068,2]
[380368577,1755707445349,-1500.0,0.00019068,2]
[380368578,1755707445359,-1500.0,0.00019068,2]
[380368579,1755707445369,-1500.0,0.00019068,2]
[380368580,1755707445378,-1500.0,0.00019068,2]
[380368581,1755707445388,-1500.0,0.00019068,2]
[380368582,1755707445398,-1500.0,0.00019068,2]
[380368583,1755707445407,-1500.0,0.00019068,2]
[380368584,1755707445417,-1500.0,0.00019068,2]
[380368585,1755707445427,-590.64711466,0.00019068,2]
[380368586,1755707445436,-1500.0,0.00019068,2]
[380368587,1755707445446,-314.16,0.00019123,2]
[380368588,1755707445455,-3970.46,0.00019177,2]
[380368589,1755707445465,-500.0,0.00019266,2]
[380368590,1755707445475,-150.0,0.00019324,2]
[380368591,1755707445485,-167.33,0.00019378,2]
[380368592,1755707445494,-1016.07251768,0.000194,2]
[380368593,1755707445503,-5000.0,0.00019477,2]
[380368594,1755707445513,-4152.0,0.000195,2]
[380368595,1755707445523,-21500.0,0.000195,2]
[380368596,1755707445532,-2751.0,0.00019579,2]
[380368597,1755707445542,-181.26,0.00019579,2]
[380368598,1755707445552,-1379.7408,0.00019579,2]
[380368599,1755707445561,-2000.0,0.00019616,2]
[380368600,1755707445570,-2000.0,0.00019616,2]
[380368601,1755707445580,-2000.0,0.00019616,2]
[380368602,1755707445590,-2000.0,0.00019616,2]
[380368603,1755707445599,-602.99012364,0.00019616,2]
[380368604,1755707445609,-2000.0,0.00019616,2]
[380368605,1755707445619,-2147.5437122,0.00019616,2]
[380368606,1755707445628,-2000.0,0.00019616,2]
[380368607,1755707445638,-2000.0,0.00019616,2]
[380368608,1755707445648,-2000.0,0.00019616,2]
[380368609,1755707445658,-2000.0,0.00019616,2]
[380368610,1755707445667,-167.72,0.00019626,2]
[380368611,1755707445676,-643.79,0.00019688,2]
[380368612,1755707445686,-18372.96,0.000197,2]
[380368613,1755707445696,-164.58764109,0.000197,2]
[380368614,1755707445705,-578.33457557,0.00019775,2]
[380368615,1755707445716,-275.7207,0.00019775,2]
[380368616,1755707445726,-8872.36,0.000198,2]
[380368617,1755707445736,-200.0,0.00019845,2]
[380368618,1755707445745,-6368.535591,0.0001985,4]
[380368619,1755707445754,-6368.535591,0.0001985,4]
[380368620,1755707445764,-6368.535591,0.0001985,4]
[380368621,1755707445773,-6368.535591,0.0001985,4]
[380368622,1755707445783,-6368.535591,0.0001985,4]
[380368623,1755707445792,-6368.535591,0.0001985,4]
[380368624,1755707445802,-6368.535591,0.0001985,4]
[380368625,1755707445811,-6368.535591,0.0001985,4]
[380368626,1755707445821,-6368.535591,0.0001985,4]
[380368627,1755707445830,-6368.535591,0.0001985,4]